bitfinex-derivatives/quotes_ETHF0:USTF0_20210109
["timestamp","ask_amount","ask_price","bid_price","bid_amount"]
[1610184846917,104.72224021,1209.3,1208.5,50.0]
[1610184847116,4.00959,1208.6,1208.5,50.0]
[1610184847317,4.00959,1208.6,1208.1,54.00959]
[1610184847318,6.20679,1208.6,1208.1,54.00959]
[1610184847517,6.20679,1208.6,1208.5,50.0]
[1610184847917,6.20679,1208.6,1208.1,4.00959]
[1610184848118,6.20679,1208.6,1208.5,50.0]
[1610184848519,6.20679,1208.6,1208.2,50.0]
[1610184848920,6.20679,1208.6,1208.5,50.0]
[1610184849319,6.20679,1208.6,1208.3,50.0]
[1610184849719,61.6628,1208.3,1208.2,50.0]
[1610184849920,63.5073,1208.3,1208.2,50.0]
[1610184850119,1.8445,1208.3,1206.8,30.50495999]
[1610184850319,1.8445,1208.3,1206.0,7.08890941]
[1610184850320,1.8445,1208.3,1206.6,0.50503403]
[1610184850518,65.8279,1207.6,1206.6,0.50503403]
[1610184850719,65.8279,1207.6,1207.5,50.0]
[1610184850919,65.8279,1207.6,1206.8,2.2877]
[1610184851120,65.8279,1207.6,1207.0,4.00959]
[1610184851322,65.8279,1207.6,1206.8,2.2877]
[1610184851720,65.8279,1207.6,1206.9,50.0]
[1610184852521,65.8279,1207.6,1207.0,50.0]
[1610184852921,65.8279,1207.6,1206.9,50.0]
[1610184853323,4.00959,1207.0,1206.9,50.0]
[1610184853524,11.53599,1207.0,1206.7,4.00959]
[1610184853723,4.00959,1207.0,1206.7,4.00959]
[1610184853923,4.00959,1207.0,1206.9,50.0]
[1610184854528,55.2147,1206.8,1206.0,3.6133]
[1610184854923,55.2147,1206.8,1206.6,50.0]
[1610184855325,55.2147,1206.8,1206.1,50.0]
[1610184855326,4.00959,1206.7,1206.3,4.00959]
[1610184855724,4.00959,1206.7,1206.4,50.0]
[1610184856326,2.1332,1206.9,1206.4,50.0]
[1610184856525,2.1332,1206.9,1206.3,4.00959]
[1610184856526,2.1332,1206.9,1206.5,50.0]
[1610184856727,2.1332,1206.9,1206.5,51.6532]
[1610184856927,69.0282,1207.5,1206.5,1.6532]
[1610184857231,4.00959,1207.3,1207.2,4.00959]
[1610184857426,4.00959,1207.3,1206.6,50.0]
[1610184857627,4.00959,1207.3,1206.2,1.7452]
[1610184858027,1.9261,1207.5,1206.7,50.0]
[1610184858427,1.9261,1207.5,1206.5,53.4405]
[1610184858628,2.2515,1207.5,1206.8,50.0]
[1610184859027,2.2515,1207.5,1206.6,32.4542]
[1610184859229,2.2515,1207.5,1207.4,4.00959]
[1610184859827,4.00959,1207.7,1207.4,4.00959]
[1610184860027,4.00959,1207.7,1207.4,54.00959]
[1610184860229,2.6119,1207.8,1207.5,50.0]
[1610184860429,1.8445,1208.3,1207.5,50.0]
[1610184860629,1.8445,1208.3,1207.6,50.0]
[1610184860830,47.4345,1208.4,1207.6,50.0]
[1610184861028,47.4345,1208.4,1207.5,50.0]
[1610184861228,4.00959,1207.6,1207.5,50.0]
[1610184861428,4.00959,1207.6,1207.4,4.00959]
[1610184861632,4.00959,1207.6,1207.5,50.0]
[1610184862033,2.2791,1207.8,1207.5,50.0]
[1610184862432,2.2791,1207.8,1207.6,50.0]
[1610184862833,2.2791,1207.8,1207.5,50.0]
[1610184863234,2.2791,1207.8,1207.7,4.00959]
[1610184864033,2.2791,1207.8,1207.7,54.00959]
[1610184864633,1.802,1208.4,1207.7,54.00959]
[1610184865034,1.802,1208.4,1207.7,4.00959]
[1610184865234,1.802,1208.4,1207.8,80.0]
[1610184865435,4.00959,1208.6,1208.3,4.00959]
[1610184866337,4.00959,1208.6,1208.4,50.0]
[1610184866635,4.00959,1208.6,1208.5,50.0]
[1610184866936,4.00959,1208.6,1208.4,50.0]
[1610184867336,4.00959,1208.6,1208.5,54.00959]
[1610184867636,4.00959,1208.6,1208.5,4.00959]
[1610184867836,4.00959,1208.6,1208.4,50.0]
[1610184868036,4.00959,1208.6,1208.5,50.0]
[1610184868437,4.00959,1208.6,1207.9,50.0]
[1610184868638,6.14529,1208.6,1208.5,50.0]
[1610184869136,6.14529,1208.6,1208.4,50.0]
[1610184869540,6.14529,1208.6,1207.6,50.0]
[1610184869937,6.14529,1208.6,1208.5,50.0]
[1610184870338,59.93232363,1208.6,1207.7,50.0]
[1610184870741,59.93232363,1208.6,1208.5,50.0]
[1610184870742,6.14529,1208.6,1208.5,50.0]
[1610184871140,6.14529,1208.6,1207.4,34.00959]
[1610184871141,6.14529,1208.6,1207.8,50.0]
[1610184871341,6.14529,1208.6,1208.1,4.00959]
[1610184871543,6.14529,1208.6,1208.5,50.0]
[1610184871742,6.14529,1208.6,1208.2,50.0]
[1610184872144,6.14529,1208.6,1208.5,50.0]
[1610184872344,6.14529,1208.6,1208.1,4.00959]
[1610184872542,6.14529,1208.6,1208.3,50.0]
[1610184872741,6.14529,1208.6,1208.2,50.0]
[1610184873242,6.14529,1208.6,1208.3,50.0]
[1610184873443,2.1357,1208.6,1208.4,4.00959]
[1610184873643,1.6488,1208.9,1208.4,4.00959]
[1610184873843,53.78234006,1209.1,1208.4,4.00959]
[1610184874042,53.78234006,1209.1,1208.5,50.0]
[1610184874243,53.80167278,1209.0,1208.5,50.0]
[1610184874444,55.77247278,1209.0,1208.3,50.0]
[1610184874646,66.5482,1208.5,1207.2,2.0309]
[1610184874844,68.4025,1208.5,1207.0,30.0]
[1610184875048,68.4025,1208.5,1208.4,50.0]
[1610184875250,68.4025,1208.5,1206.8,98.3715]
[1610184875449,4.00959,1207.9,1207.7,4.00959]
[1610184876051,4.00959,1207.9,1207.8,50.0]
[1610184877354,4.00959,1208.1,1207.8,50.0]
[1610184877654,4.00959,1208.1,1207.9,50.0]
[1610184878053,4.00959,1208.1,1207.7,4.00959]
[1610184878054,4.00959,1208.1,1207.8,50.0]
[1610184878456,4.00959,1208.1,1208.0,50.0]
[1610184878657,12.87729,1208.1,1207.9,50.0]
[1610184879057,12.87729,1208.1,1207.3,2.043]
[1610184879058,12.87729,1208.1,1208.0,50.0]
[1610184879358,12.87729,1208.1,1207.4,50.0]
[1610184879658,12.87729,1208.1,1208.0,50.0]
[1610184884263,12.87729,1208.1,1208.0,51.6403]
[1610184884764,12.87729,1208.1,1208.0,50.0]
[1610184887266,4.00959,1208.1,1208.0,50.0]
[1610184895671,2.72799,1208.1,1208.0,50.0]
[1610184895872,1.8543,1208.5,1208.0,50.0]
[1610184896072,53.23391856,1208.8,1208.0,50.0]
[1610184896273,53.23391856,1208.8,1208.1,50.0]
[1610184896577,53.19756033,1208.9,1208.0,50.0]
[1610184896976,40.63132162,1208.9,1208.1,50.0]
[1610184897176,55.18806821,1209.0,1208.1,50.0]
[1610184897375,55.18806821,1209.0,1208.6,4.00959]
[1610184897576,1.9708,1209.0,1208.6,4.00959]
[1610184897775,53.22041725,1209.1,1208.6,4.00959]
[1610184897975,40.636403,1209.0,1208.7,50.0]
[1610184898375,42.498003,1209.0,1208.8,50.0]
[1610184898575,55.06264365,1209.0,1208.8,50.0]
[1610184898775,55.06264365,1209.0,1207.7,2.1133]
[1610184898776,53.14252345,1208.9,1207.9,50.0]
[1610184899176,53.12704914,1208.8,1208.7,50.0]
[1610184899376,53.12704914,1208.8,1207.2,61.0905]
[1610184899576,53.12704914,1208.8,1208.0,50.0]
[1610184899577,57.13663914,1208.8,1208.0,50.0]
[1610184899776,53.09563174,1208.7,1208.0,50.0]
[1610184899978,55.55363174,1208.7,1207.8,50.0]
[1610184900179,40.54979465,1208.6,1207.6,5.67039]
[1610184900376,40.54979465,1208.6,1207.9,50.0]
[1610184900578,53.08202561,1208.6,1207.9,50.0]
[1610184900780,53.08202561,1208.6,1207.7,50.0]
[1610184900977,53.08202561,1208.6,1207.6,5.67039]
[1610184901177,40.54979465,1208.6,1207.6,5.67039]
[1610184901377,4.00959,1208.0,1207.9,4.00959]
[1610184901777,1.753,1208.2,1207.9,4.00959]
[1610184902377,1.753,1208.2,1207.9,54.00959]
[1610184902779,43.00438867,1208.7,1208.0,50.0]
[1610184902977,2.458,1208.7,1208.0,50.0]
[1610184903179,2.458,1208.7,1208.1,50.0]
[1610184903379,4.00959,1208.2,1208.1,54.00959]
[1610184903581,4.00959,1208.2,1208.1,4.00959]
[1610184903981,4.00959,1208.2,1208.1,54.00959]
[1610184908391,3.39819,1208.2,1208.1,54.00959]
[1610184909692,2.53289,1208.2,1208.1,54.00959]
[1610184909892,1.67009,1208.2,1208.1,54.00959]
[1610184910093,9e-05,1208.2,1208.1,54.00959]
[1610184910292,2.458,1208.7,1208.1,54.00959]
[1610184910494,53.40954177,1208.9,1208.1,54.00959]
[1610184910695,53.40954177,1208.9,1208.2,50.0]
[1610184910895,124.04849991,1209.0,1208.2,50.0]
[1610184911095,124.04849991,1209.0,1208.3,50.0]
[1610184911295,124.04849991,1209.0,1208.3,51.6406]
[1610184911496,124.04849991,1209.0,1208.5,4.00959]
[1610184912297,124.04849991,1209.0,1208.6,50.0]
[1610184912697,124.04849991,1209.0,1208.7,50.0]
[1610184913097,42.69107682,1209.0,1208.6,50.0]
[1610184913298,55.28532945,1209.0,1208.6,50.0]
[1610184913501,4.00959,1208.7,1208.6,50.0]
[1610184914300,4.00959,1208.7,1208.3,4.00959]
[1610184914499,4.00959,1208.7,1208.6,50.0]
[1610184914899,4.00959,1208.7,1208.4,50.0]
[1610184914900,4.00959,1208.7,1208.3,4.00959]
[1610184915100,4.00959,1208.7,1208.6,50.0]
[1610184915500,4.00959,1208.7,1208.5,50.0]
[1610184915699,4.00959,1208.7,1208.3,4.00959]
[1610184915901,4.00959,1208.7,1208.6,50.0]
[1610184916100,4.00959,1208.7,1208.4,50.0]
[1610184916500,4.00959,1208.7,1208.6,50.0]
[1610184916800,4.00959,1208.7,1208.4,50.0]
[1610184917200,4.00959,1208.7,1208.5,50.0]
[1610184917500,4.00959,1208.7,1208.5,54.00959]
[1610184917700,4.00959,1208.7,1208.5,4.00959]
[1610184917899,4.00959,1208.7,1208.6,50.0]
[1610184924307,1.8616,1209.0,1208.6,50.0]
[1610184924708,53.45052855,1209.1,1208.7,50.0]
[1610184924909,53.32348025,1209.2,1208.7,50.0]
[1610184925110,53.32348025,1209.2,1208.6,50.0]
[1610184925311,2.4025,1209.2,1208.6,50.0]
[1610184925510,2.4025,1209.2,1209.1,4.00959]
[1610184926112,2.4025,1209.2,1209.1,54.00959]
[1610184926509,53.50356906,1209.6,1209.1,54.00959]
[1610184926710,14.58216427,1209.8,1209.1,54.00959]
[1610184926711,53.53172429,1209.8,1209.1,54.00959]
[1610184926910,53.53172429,1209.8,1209.2,50.0]
[1610184927311,53.53172429,1209.8,1209.3,50.0]
[1610184927511,57.54131429,1209.8,1209.7,4.00959]
[1610184927911,4.00959,1209.8,1209.7,4.00959]
[1610184928114,4.00959,1209.8,1209.3,1.6713]
[1610184928311,4.00959,1209.8,1209.7,50.0]
[1610184928513,5.62459,1209.8,1209.7,50.0]
[1610184928713,59.1602839,1209.8,1209.4,50.0]
[1610184929112,59.1602839,1209.8,1209.7,50.0]
[1610184929312,5.62459,1209.8,1209.7,50.0]
[1610184929512,5.62459,1209.8,1209.2,4.00959]
[1610184929711,8.65370493,1209.8,1209.7,50.0]
[1610184929912,5.62459,1209.8,1209.7,50.0]
[1610184930112,5.62459,1209.8,1209.3,50.0]
[1610184930313,15.41937453,1209.8,1208.7,1.0]
[1610184930513,8.65367453,1209.8,1209.4,50.0]
[1610184930713,53.48936516,1209.6,1209.3,50.0]
[1610184930915,109.06436516,1209.6,1208.7,1.0]
[1610184931114,109.06436516,1209.6,1208.8,50.0]
[1610184931315,53.44447888,1209.5,1209.4,50.0]
[1610184931513,57.45406888,1209.5,1208.8,4.00959]
[1610184931715,59.51776888,1209.5,1208.8,4.00959]
[1610184931914,19.20229121,1209.5,1209.4,50.0]
[1610184932217,19.20229121,1209.5,1208.9,50.0]
[1610184932416,22.23207155,1209.5,1208.8,4.00959]
[1610184932617,22.23207155,1209.5,1209.4,50.0]
[1610184932817,19.20229121,1209.5,1209.4,50.0]
[1610184933017,22.23213157,1209.5,1208.8,4.00959]
[1610184933319,19.20229121,1209.5,1208.8,4.00959]
[1610184933518,15.19270121,1209.5,1209.4,50.0]
[1610184933921,15.19270121,1209.5,1208.8,4.00959]
[1610184934120,15.19270121,1209.5,1209.4,50.0]
[1610184934319,18.22253996,1209.5,1209.4,50.0]
[1610184934919,55.62850065,1209.5,1209.4,50.0]
[1610184935519,59.63809065,1209.5,1209.4,50.0]
[1610184936321,59.63809065,1209.5,1209.4,51.6413]
[1610184936527,59.63809065,1209.5,1209.4,50.0]
[1610184936922,9.10307653,1209.5,1209.4,50.0]
[1610184937223,22.23185088,1209.5,1209.4,50.0]
[1610184937525,22.23185088,1209.5,1209.4,51.6325]
[1610184937725,9.10307653,1209.5,1209.4,51.6325]
[1610184937927,59.655579,1209.5,1209.4,51.6325]
[1610184938626,59.655579,1209.5,1209.4,50.0]
[1610184939528,2.0637,1209.5,1209.4,55.65089]
[1610184939728,53.58192367,1209.6,1209.4,55.65089]
[1610184939928,57.59596963,1209.7,1209.4,54.00959]
[1610184940128,57.59596963,1209.7,1209.5,50.0]
[1610184940427,57.59596963,1209.7,1209.6,50.0]
[1610184940829,53.58637963,1209.7,1209.4,4.00959]
[1610184941029,53.58637963,1209.7,1209.4,5.65379]
[1610184941230,78.07362524,1209.8,1209.6,50.0]
[1610184941632,82.08321524,1209.8,1209.7,4.00959]
[1610184941830,82.08321524,1209.8,1209.7,54.00959]
[1610184942230,28.62459,1209.8,1209.7,54.00959]
[1610184942636,82.00658327,1209.8,1209.7,50.0]
[1610184943533,36.70257355,1209.8,1209.7,50.0]
[1610184944538,42.10128623,1209.8,1209.7,50.0]
[1610184945939,56.65547638,1209.8,1209.7,50.0]
[1610184946139,100.04307355,1209.8,1209.7,50.0]
[1610184946639,36.70257355,1209.8,1209.7,50.0]
[1610184946840,44.7816345,1209.8,1209.7,50.0]
[1610184947140,51.24892016,1209.8,1209.7,50.0]
[1610184947440,56.6479559,1209.8,1209.7,50.0]
[1610184948242,42.10160929,1209.8,1209.7,50.0]
[1610184948842,87.4090505,1209.8,1209.7,50.0]
[1610184949043,82.01001476,1209.8,1209.7,50.0]
[1610184949644,82.01001476,1209.8,1209.7,54.00959]
[1610184950043,36.70230054,1209.8,1209.7,54.00959]
[1610184951542,36.70230054,1209.8,1209.7,50.0]
[1610184954747,42.10126817,1209.8,1209.7,50.0]
[1610184954945,56.64572635,1209.8,1209.7,50.0]
[1610184955545,42.10126817,1209.8,1209.7,50.0]
[1610184956845,38.09167817,1209.8,1209.7,50.0]
[1610184957347,83.39532443,1209.8,1209.7,50.0]
[1610184957646,42.10123154,1209.8,1209.7,54.00959]
[1610184958546,42.10123154,1209.8,1209.7,50.0]
[1610184961948,56.61579002,1209.8,1209.7,50.0]
[1610184962349,42.10123154,1209.8,1209.7,50.0]
[1610184962750,56.6094478,1209.8,1209.7,50.0]
[1610184963452,42.10123154,1209.8,1209.7,50.0]
[1610184963852,54.68178959,1209.8,1209.7,50.0]
[1610184964152,87.28047641,1209.8,1209.7,50.0]
[1610184965554,42.10138418,1209.8,1209.7,50.0]
[1610184965953,50.17902703,1209.8,1209.7,50.0]
[1610184966153,42.10138418,1209.8,1209.7,50.0]
[1610184974871,96.64058418,1209.8,1209.7,50.0]
[1610184975471,104.71846967,1209.8,1209.7,50.0]
[1610184975670,119.22932723,1209.8,1209.7,50.0]
[1610184977372,104.71846967,1209.8,1209.7,50.0]
[1610184978873,104.71846967,1209.8,1209.5,50.0]
[1610184979073,66.64230166,1209.8,1209.1,50.0]
[1610184979474,40.67211886,1209.2,1208.7,1.0]
[1610184979674,4.00959,1208.8,1208.7,1.0]
[1610184980274,6.35699,1208.8,1208.7,51.0]
[1610184981276,46.94820583,1208.8,1208.7,51.0]
[1610184981676,59.49282306,1208.8,1208.7,51.0]
[1610184982077,21.9326133,1208.8,1208.7,51.0]
[1610184982478,9.38799607,1208.8,1208.7,51.0]
[1610184984078,23.81956496,1208.8,1208.7,51.0]
[1610184984478,23.81956496,1208.8,1208.7,1.0]
[1610184984679,9.38799607,1208.8,1208.7,1.0]
[1610184985081,14.7891211,1208.8,1208.7,1.0]
[1610184987084,34.30948377,1208.8,1208.7,51.0]
[1610184987384,14.7891211,1208.8,1208.7,51.0]
[1610184987884,9.38799607,1208.8,1208.7,51.0]
[1610184988485,71.73342427,1208.8,1208.7,51.0]
[1610184988885,70.40448343,1208.8,1208.7,51.0]
[1610184989089,70.40448343,1208.8,1208.7,1.0]
[1610184989287,84.87189659,1208.8,1208.7,1.0]
[1610184992189,70.40448343,1208.8,1208.7,1.0]
[1610184994392,22.52458343,1208.8,1208.7,1.0]
[1610184994792,23.83497208,1208.8,1208.7,51.0]
[1610184995393,9.38799607,1208.8,1208.7,51.0]
[1610184995796,9.38799607,1208.8,1208.7,1.0]
[1610184996194,14.44081023,1208.8,1208.7,1.0]
[1610184996595,22.5252964,1208.8,1208.7,1.0]
[1610184996794,6.35699,1208.8,1208.7,1.0]
[1610184997095,6.35699,1208.8,1208.7,51.0]
[1610184997295,9.38869241,1208.8,1208.7,51.0]
[1610184997595,9.38869241,1208.8,1208.7,1.0]
[1610184998595,23.85230554,1208.8,1208.7,1.0]
[1610184999396,29.2044965,1208.8,1208.7,1.0]
[1610185000599,29.2044965,1208.8,1208.7,51.0]
[1610185000600,14.74088337,1208.8,1208.7,51.0]
[1610185000900,32.35065129,1208.8,1208.7,51.0]
[1610185001300,14.74088337,1208.8,1208.7,51.0]
[1610185001500,32.33476891,1208.8,1208.7,51.0]
[1610185001900,27.28232396,1208.8,1208.7,51.0]
[1610185002602,64.78841524,1208.8,1208.7,51.0]
[1610185004303,60.77882524,1208.8,1208.7,51.0]
[1610185004603,48.23738465,1208.8,1208.7,51.0]
[1610185004804,7.69959096,1208.8,1208.7,51.0]
[1610185005205,2.3474,1208.8,1208.7,51.0]
[1610185005404,53.2026597,1209.1,1208.7,51.0]
[1610185005905,40.63521643,1209.1,1209.0,4.00959]
[1610185006105,59.0693469,1209.2,1209.0,4.00959]
[1610185006305,59.0693469,1209.2,1209.0,54.00959]
[1610185006805,59.0693469,1209.2,1209.1,50.0]
[1610185008208,46.50523956,1209.2,1209.1,50.0]
[1610185008509,5.87009,1209.2,1209.1,50.0]
[1610185011008,59.23825681,1209.2,1209.1,50.0]
[1610185015816,72.92538804,1209.2,1209.1,50.0]
[1610185016013,72.92538804,1209.2,1208.9,50.0]
[1610185016414,72.92538804,1209.2,1208.2,49.9331]
[1610185016415,100.59781149,1209.2,1208.3,50.0]
[1610185016615,53.32145457,1208.9,1208.3,50.0]
[1610185016814,53.32145457,1208.9,1208.2,49.9331]
[1610185017016,53.32468948,1208.8,1208.2,49.9331]
[1610185017214,53.32468948,1208.8,1208.4,50.0]
[1610185017415,53.32468948,1208.8,1208.3,50.0]
[1610185017616,53.32468948,1208.8,1208.3,1.631]
[1610185017816,53.32468948,1208.8,1208.5,50.0]
[1610185018016,55.49927816,1208.9,1208.5,50.0]
[1610185018215,55.49927816,1208.9,1208.4,4.00959]
[1610185018418,2.0763,1208.9,1208.6,50.0]
[1610185018817,2.0763,1208.9,1208.5,50.0]
[1610185019016,2.0763,1208.9,1208.4,4.00959]
[1610185019216,2.0763,1208.9,1208.6,50.0]
[1610185019617,2.0763,1208.9,1208.4,4.00959]
[1610185019817,2.0763,1208.9,1208.8,4.00959]
[1610185020619,2.0763,1208.9,1208.8,54.00959]
[1610185021920,4.00959,1208.9,1208.8,54.00959]
[1610185022117,55.14430889,1209.2,1208.8,54.00959]
[1610185022518,55.14430889,1209.2,1208.9,50.0]
[1610185022818,55.14430889,1209.2,1209.0,50.0]
[1610185023218,55.14430889,1209.2,1208.8,4.00959]
[1610185023418,55.14430889,1209.2,1209.1,50.0]
[1610185023823,59.15389889,1209.2,1209.0,4.00959]
[1610185024220,59.15389889,1209.2,1209.1,50.0]
[1610185030226,111.83619889,1209.2,1209.1,50.0]
[1610185030427,61.58308937,1209.2,1209.1,50.0]
[1610185030831,74.71616296,1209.2,1208.9,50.0]
[1610185031029,22.03386296,1209.2,1208.9,50.0]
[1610185031229,54.1771,1209.0,1208.9,50.0]
[1610185031429,54.1771,1209.0,1208.6,50.0]
[1610185031631,84.86178639,1209.0,1208.6,50.0]
[1610185031830,4.00959,1208.7,1208.0,50.0]
[1610185032030,59.78626798,1208.7,1208.0,50.0]
[1610185032231,59.78626798,1208.7,1207.9,5.68759]
[1610185032430,59.78626798,1208.7,1207.9,4.00959]
[1610185032630,59.78626798,1208.7,1208.1,50.0]
[1610185032832,59.78626798,1208.7,1208.0,50.0]
[1610185033031,59.78626798,1208.7,1207.9,4.00959]
[1610185033231,59.78626798,1208.7,1208.1,50.0]
[1610185033431,6.51049,1208.7,1208.1,50.0]
[1610185033631,6.51049,1208.7,1208.0,50.0]
[1610185033831,2.5009,1208.7,1208.6,4.00959]
[1610185034432,2.5009,1208.7,1208.6,59.33419]
[1610185034632,2.5009,1208.7,1208.6,109.33419]
[1610185035833,6.51049,1208.7,1208.6,109.33419]
[1610185036035,6.51049,1208.7,1208.6,54.00959]
[1610185036834,2.5009,1208.7,1208.6,54.00959]
[1610185037034,53.39075405,1209.0,1208.6,54.00959]
[1610185037234,53.40377854,1209.1,1208.6,54.00959]
[1610185037435,53.40377854,1209.1,1208.7,50.0]
[1610185037836,57.41336854,1209.1,1209.0,4.00959]
[1610185038637,57.41336854,1209.1,1209.0,54.00959]
[1610185039738,55.28521068,1209.2,1209.0,54.00959]
[1610185039940,1.8605,1209.2,1209.0,54.00959]
[1610185040139,53.46824035,1209.3,1209.1,105.4858]
[1610185040339,57.49785619,1209.4,1209.1,105.4858]
[1610185040538,57.49785619,1209.4,1209.2,50.0]
[1610185040938,57.49785619,1209.4,1209.3,50.0]
[1610185041340,57.49785619,1209.4,1209.2,50.0]
[1610185041539,59.27315619,1209.4,1209.2,50.0]
[1610185041741,59.27315619,1209.4,1209.3,50.0]
[1610185041940,59.27315619,1209.4,1209.3,54.00959]
[1610185042145,59.27315619,1209.4,1209.3,4.00959]
[1610185042442,5.78489,1209.4,1209.3,54.00959]
[1610185044647,1.7753,1209.4,1209.3,54.00959]
[1610185046652,53.53894916,1209.7,1209.3,54.00959]
[1610185047051,53.53894916,1209.7,1209.4,50.0]
[1610185047450,53.53894916,1209.7,1209.5,50.0]
[1610185047851,53.53894916,1209.7,1209.6,4.00959]
[1610185048151,53.53894916,1209.7,1209.6,54.00959]
[1610185050653,53.53894916,1209.7,1209.6,50.0]
[1610185050853,21.3818181,1209.7,1209.6,50.0]
[1610185051053,8.07852458,1209.7,1209.6,50.0]
[1610185054461,22.68672128,1209.7,1209.6,50.0]
[1610185054962,22.68672128,1209.7,1209.5,50.0]
[1610185055163,8.07852458,1209.7,1209.5,50.0]
[1610185055364,8.07852458,1209.7,1209.6,50.0]
[1610185055763,13.45916441,1209.7,1209.0,50.0]
[1610185055964,13.45916441,1209.7,1209.0,51.653]
[1610185056163,53.58201704,1209.4,1209.0,51.653]
[1610185056363,55.19641704,1209.4,1209.0,1.653]
[1610185056564,1.6144,1209.4,1209.2,63.6385]
[1610185056965,1.6144,1209.4,1209.3,50.0]
[1610185057866,1.6144,1209.4,1209.3,54.00959]
[1610185059868,5.62399,1209.4,1209.3,54.00959]
[1610185060268,1.6144,1209.4,1209.3,54.00959]
[1610185061470,78.30871191,1209.8,1209.3,54.00959]
[1610185061870,78.30871191,1209.8,1209.7,4.00959]
[1610185062470,78.30871191,1209.8,1209.7,54.00959]
[1610185066276,24.615,1209.8,1209.7,54.00959]
[1610185066476,23.3103,1209.8,1209.7,54.00959]
[1610185066676,16.4269,1209.8,1209.7,54.00959]
[1610185066879,16.1257,1209.8,1209.7,54.00959]
[1610185067476,18.0939,1209.8,1209.7,54.00959]
[1610185075783,18.0939,1209.8,1209.7,55.65829]
[1610185078286,18.0939,1209.8,1209.7,54.00959]
[1610185081286,18.0939,1209.8,1209.7,55.65229]
[1610185084894,15.9845,1209.8,1209.7,55.65229]
[1610185085091,13.1742,1209.8,1209.7,55.65229]
[1610185089095,12.5054,1209.8,1209.7,55.65229]
[1610185089597,11.6814,1209.8,1209.7,55.65229]
[1610185089996,10.0746,1209.8,1209.7,55.65229]
[1610185091298,8.8134,1209.8,1209.7,55.65229]
[1610185091499,7.5734,1209.8,1209.7,55.65229]
[1610185093703,7.4024,1209.8,1209.7,55.65229]
[1610185095203,3.7428,1209.8,1209.7,55.65229]
[1610185095905,2.1008,1209.8,1209.7,55.65229]
[1610185096103,0.4308,1209.8,1209.7,55.65229]
[1610185096304,1.9401,1210.1,1209.7,55.65229]
[1610185096503,0.9489,1210.1,1209.8,63.9559]
[1610185096704,53.84190966,1210.5,1209.8,113.9559]
[1610185097407,53.84190966,1210.5,1209.9,50.0]
[1610185098005,53.84190966,1210.5,1210.4,4.00959]
[1610185098809,53.84190966,1210.5,1210.4,54.00959]
[1610185101412,3.02726247,1210.5,1210.4,54.00959]
[1610185101812,8.40531026,1210.5,1210.4,54.00959]
[1610185103918,10.63541026,1210.5,1210.4,54.00959]
[1610185104317,61.35128961,1210.5,1210.4,54.00959]
[1610185104518,55.97324182,1210.5,1210.4,54.00959]
[1610185106318,55.97324182,1210.5,1210.4,50.0]
[1610185108118,55.97324182,1210.5,1210.4,54.00959]
[1610185108321,5.25748064,1210.5,1210.4,54.00959]
[1610185110222,55.97647313,1210.5,1210.4,54.00959]
[1610185117533,5.25738164,1210.5,1210.4,54.00959]
[1610185117833,56.09777201,1210.5,1210.4,54.00959]
[1610185122039,56.09777201,1210.5,1210.4,50.0]
[1610185122241,5.25738377,1210.5,1210.4,50.0]
[1610185122440,29.25738377,1210.5,1210.4,50.0]
[1610185122641,34.30271977,1210.5,1210.4,50.0]
[1610185122942,80.11607549,1210.5,1210.4,50.0]
[1610185125345,34.3027553,1210.5,1210.4,50.0]
[1610185125745,80.28496129,1210.5,1210.4,50.0]
[1610185125946,85.61487951,1210.5,1210.4,50.0]
[1610185127850,39.63255524,1210.5,1210.4,50.0]
[1610185128250,47.70520203,1210.5,1210.4,50.0]
[1610185131054,85.67814911,1210.5,1210.4,50.0]
[1610185133056,80.34823089,1210.5,1210.4,50.0]
[1610185134656,49.0386493,1210.5,1210.4,50.0]
[1610185135056,34.30297368,1210.5,1210.4,50.0]
[1610185135456,81.00607368,1210.5,1210.4,50.0]
[1610185135657,81.00607368,1210.5,1210.3,50.0]
[1610185135857,86.3363807,1210.5,1210.3,50.0]
[1610185136058,16.14782644,1210.4,1209.7,50.0]
[1610185136258,16.14782644,1210.4,1209.8,4.00959]
[1610185136459,30.88420434,1210.4,1210.3,50.0]
[1610185136659,30.88420434,1210.4,1209.9,50.0]
[1610185137061,22.81029112,1210.4,1209.9,50.0]
[1610185137260,22.81029112,1210.4,1210.3,50.0]
[1610185137464,54.07087458,1210.2,1210.0,50.0]
[1610185137664,56.67017458,1210.2,1210.0,50.0]
[1610185137863,56.67017458,1210.2,1209.8,4.00959]
[1610185138263,4.00959,1209.9,1209.8,4.00959]
[1610185138665,4.00959,1209.9,1209.8,54.00959]
[1610185140265,4.00959,1209.9,1209.8,50.0]
[1610185140466,6.25049,1209.9,1209.8,50.0]
[1610185140665,53.52439,1209.9,1209.8,50.0]
[1610185141266,107.50622639,1209.9,1209.8,50.0]
[1610185141667,107.50622639,1209.9,1209.1,65.6595]
[1610185141668,84.38604686,1209.9,1209.6,50.0]
[1610185142072,84.38604686,1209.9,1209.5,50.0]
[1610185142469,4.00959,1209.7,1209.5,50.0]
[1610185142669,53.92136907,1209.6,1209.4,50.0]
[1610185142868,109.87586907,1209.6,1209.4,50.0]
[1610185143071,109.87586907,1209.6,1209.2,50.0]